bitfinex-derivatives/quotes_BTCF0:USTF0_20250803
["timestamp","ask_amount","ask_price","bid_price","bid_amount"]
[1754181331276,0.6558777,112340.0,112330.0,0.68847514]
[1754181332572,0.2950777,112340.0,112330.0,0.68847514]
[1754181332773,0.2705377,112340.0,112330.0,0.68847514]
[1754181332973,0.6797179,112350.0,112340.0,0.2953276]
[1754181333172,0.7042579,112350.0,112340.0,0.55694865]
[1754181333675,0.3608,112350.0,112340.0,0.55694865]
[1754181333977,0.6351759,112360.0,112350.0,0.2953118]
[1754181334180,0.6351759,112360.0,112350.0,0.55693285]
[1754181334565,0.7487271,112370.0,112360.0,0.2256159]
[1754181334764,0.7487271,112370.0,112360.0,0.55691695]
[1754181335270,0.7487271,112370.0,112360.0,0.2952959]
[1754181336387,0.7507271,112370.0,112360.0,0.2952959]
[1754181336678,0.7517271,112370.0,112360.0,0.2952959]
[1754181343586,0.7271871,112370.0,112360.0,0.55691695]
[1754181343780,0.567412,112370.0,112360.0,0.55691695]
[1754181343985,0.541832,112370.0,112360.0,0.55691695]
[1754181344185,0.3638,112370.0,112360.0,0.56584347]
[1754181344486,0.003,112370.0,112360.0,0.82746452]
[1754181344684,0.003,112370.0,112360.0,1.36625651]
[1754181345187,0.3608,112390.0,112380.0,0.55688525]
[1754181345677,0.5387883,112390.0,112380.0,0.55688525]
[1754181346377,0.1779883,112390.0,112380.0,0.91768525]
[1754181346578,0.1809883,112390.0,112380.0,0.91768525]
[1754181347176,0.1809883,112390.0,112380.0,0.55688525]
[1754181348095,0.1829883,112390.0,112380.0,0.55688525]
[1754181349587,0.5777883,112390.0,112380.0,0.6282395]
[1754181349787,0.6090083,112390.0,112380.0,0.6282395]
[1754181350290,0.6180583,112390.0,112380.0,0.6282395]
[1754181350887,0.2572583,112390.0,112380.0,0.6282395]
[1754181352388,0.2425683,112390.0,112380.0,0.6282395]
[1754181352692,0.06458,112390.0,112380.0,0.9890395]
[1754181352887,0.2425684,112390.0,112380.0,0.6282395]
[1754181354095,0.2572584,112390.0,112380.0,0.6282395]
[1754181354391,0.2793284,112390.0,112380.0,0.6282395]
[1754181354996,0.6401284,112390.0,112380.0,0.6282395]
[1754181355200,0.2793284,112390.0,112380.0,0.9890395]
[1754181355494,0.2085684,112390.0,112380.0,0.9890395]
[1754181355694,0.2085684,112390.0,112380.0,0.6282395]
[1754181355994,0.2404684,112390.0,112380.0,0.6282395]
[1754181356897,0.1829884,112390.0,112380.0,0.6282395]
[1754181357294,0.1829884,112390.0,112380.0,0.9890395]
[1754181357696,0.1829884,112390.0,112380.0,0.72741845]
[1754181357898,0.1829884,112390.0,112380.0,0.6282395]
[1754181358190,0.2148884,112390.0,112380.0,0.6282395]
[1754181361501,0.0369,112390.0,112380.0,0.6282395]
[1754181361907,0.0369,112390.0,112380.0,0.9890395]
[1754181362201,0.2148881,112390.0,112380.0,0.9890395]
[1754181362402,0.2148881,112390.0,112380.0,0.6282395]
[1754181362799,0.2148881,112390.0,112380.0,0.9890395]
[1754181363590,0.2148881,112390.0,112380.0,0.6282395]
[1754181363797,0.2148881,112390.0,112380.0,0.36661845]
[1754181364002,0.6628181,112390.0,112380.0,0.6282395]
[1754181364506,0.6381981,112390.0,112380.0,0.6282395]
[1754181364708,0.178004,112380.0,112370.0,0.1578783]
[1754181364903,0.657834,112380.0,112370.0,0.3858502]
[1754181365807,0.658834,112380.0,112370.0,0.3858502]
[1754181366414,0.659834,112380.0,112370.0,0.3858502]
[1754181369815,0.48183,112380.0,112370.0,0.64747125]
[1754181370010,0.659834,112380.0,112370.0,0.64747125]
[1754181370514,0.299034,112380.0,112370.0,0.64747125]
[1754181370717,0.659834,112380.0,112370.0,0.64747125]
[1754181371014,0.659834,112380.0,112370.0,0.2913802]
[1754181371214,0.659834,112380.0,112370.0,0.3714602]
[1754181371414,0.659834,112380.0,112370.0,0.3858502]
[1754181373716,0.48183,112380.0,112360.0,0.30612985]
[1754181374026,0.48183,112380.0,112350.0,0.30254649]
[1754181374027,0.2970656,112360.0,112350.0,0.30254649]
[1754181374320,0.6578656,112360.0,112350.0,0.2469164]
[1754181374613,0.6578656,112360.0,112350.0,0.02437]
[1754181374813,0.91948665,112360.0,112350.0,0.2024215]
[1754181375015,0.6578656,112360.0,112350.0,0.2968915]
[1754181375215,0.6578656,112360.0,112350.0,0.55851255]
[1754181375818,0.6578656,112360.0,112350.0,0.2968915]
[1754181376817,0.6578656,112360.0,112350.0,0.2988915]
[1754181377212,0.6578656,112360.0,112350.0,0.56051255]
[1754181378309,0.6578656,112360.0,112350.0,0.2988915]
[1754181378718,0.6578656,112360.0,112350.0,0.2998915]
[1754181379920,0.6578656,112360.0,112350.0,0.2978915]
[1754181381025,0.6578656,112360.0,112350.0,0.2968915]
[1754181386128,0.91948665,112360.0,112350.0,0.1780515]
[1754181386516,0.91948665,112360.0,112350.0,0.2006615]
[1754181386717,0.6578656,112360.0,112350.0,0.2006615]
[1754181386917,0.6578656,112360.0,112350.0,0.2817715]
[1754181387118,0.6578656,112360.0,112350.0,0.2963215]
[1754181388630,0.6578656,112360.0,112350.0,0.11827]
[1754181388826,0.6578656,112360.0,112340.0,0.52870955]
[1754181388827,0.2724518,112350.0,112330.0,1.38752828]
[1754181389034,0.4552,112340.0,112330.0,1.62221459]
[1754181389328,0.44055,112350.0,112340.0,0.2963376]
[1754181389529,0.5633418,112350.0,112340.0,0.2963376]
[1754181389832,0.07975,112360.0,112350.0,0.2737118]
[1754181390128,0.5328147,112370.0,112350.0,0.2737118]
[1754181390129,0.7015745,112370.0,112360.0,0.296306]
[1754181390328,0.7015745,112370.0,112360.0,0.55792705]
[1754181391427,0.7025745,112370.0,112360.0,0.55792705]
[1754181391924,0.3618,112370.0,112360.0,0.55792705]
[1754181392129,0.001,112370.0,112360.0,0.8195481]
[1754181392628,0.001,112370.0,112360.0,0.91872705]
[1754181394321,0.001,112370.0,112360.0,0.55792705]
[1754181394823,0.002,112370.0,112360.0,0.55792705]
[1754181395830,0.1800201,112370.0,112360.0,0.55792705]
[1754181396925,0.002,112370.0,112360.0,0.91872705]
[1754181397130,0.002,112370.0,112360.0,0.296306]
[1754181397331,0.002,112370.0,112360.0,0.91872705]
[1754181398230,0.002,112370.0,112360.0,0.55792705]
[1754181398634,0.1800197,112370.0,112360.0,0.55792705]
[1754181398832,0.1800197,112370.0,112360.0,0.296306]
[1754181399137,0.1800197,112370.0,112360.0,0.55792705]
[1754181399433,0.002,112370.0,112360.0,0.91872705]
[1754181399635,0.002,112370.0,112360.0,0.55792705]
[1754181400233,0.002,112370.0,112360.0,0.91872705]
[1754181400630,0.002,112370.0,112360.0,0.55792705]
[1754181400935,0.002,112370.0,112360.0,0.91872705]
[1754181402437,0.002,112370.0,112360.0,0.55792705]
[1754181402628,0.1800201,112370.0,112360.0,0.91872705]
[1754181402822,0.6590601,112370.0,112360.0,0.296306]
[1754181403029,0.296276,112360.0,112350.0,0.5600118]
[1754181403230,0.657076,112360.0,112350.0,0.5600218]
[1754181403733,0.657076,112360.0,112350.0,0.2963218]
[1754181403734,0.91869705,112360.0,112350.0,0.2963218]
[1754181403943,0.657076,112360.0,112350.0,0.2487418]
[1754181404526,0.657076,112360.0,112350.0,0.2963218]
[1754181407342,0.657076,112360.0,112350.0,0.1780518]
[1754181407540,0.2963076,112340.0,112330.0,0.2963535]
[1754181407840,1.0179076,112340.0,112330.0,0.2963535]
[1754181408742,1.0179076,112340.0,112330.0,0.2983535]
[1754181409743,1.0179076,112340.0,112330.0,0.3013535]
[1754181409940,1.0179076,112340.0,112330.0,0.005]
[1754181410137,1.27952865,112340.0,112330.0,0.1830835]
[1754181410447,1.0179076,112340.0,112330.0,0.2387235]
[1754181410944,1.0179076,112340.0,112330.0,0.3013535]
[1754181412656,1.0179076,112340.0,112330.0,0.2683235]
[1754181412840,1.0179076,112340.0,112330.0,0.56297455]
[1754181413344,0.816,112340.0,112330.0,0.56297455]
[1754181413650,0.7461345,112350.0,112340.0,0.2963377]
[1754181413946,0.7461345,112350.0,112340.0,0.55795875]
[1754181414540,0.7461345,112350.0,112340.0,0.2963377]
[1754181415541,0.6433345,112350.0,112340.0,0.55795875]
[1754181415740,0.6316618,112350.0,112340.0,0.55795875]
[1754181416145,0.45461,112350.0,112340.0,0.55795875]
[1754181416351,0.44071,112350.0,112340.0,0.55795875]
[1754181416648,0.3628,112350.0,112340.0,0.55795875]
[1754181417051,0.002,112350.0,112340.0,0.55795875]
[1754181418739,0.1800518,112350.0,112340.0,0.55795875]
[1754181418938,0.002,112350.0,112340.0,0.55795875]
[1754181419140,0.5408518,112350.0,112340.0,0.2256677]
[1754181419351,0.6581218,112350.0,112340.0,0.2955177]
[1754181419647,0.5408518,112350.0,112340.0,0.55713875]
[1754181420062,0.6581218,112350.0,112340.0,0.2955177]
[1754181420250,0.2716977,112340.0,112330.0,0.3860356]
[1754181420453,0.6561377,112340.0,112330.0,0.3415172]
[1754181420650,0.6561377,112340.0,112330.0,0.1780697]
[1754181420849,0.6561377,112340.0,112330.0,0.2021597]
[1754181421152,0.6561377,112340.0,112330.0,0.2021735]
[1754181421848,0.6561377,112340.0,112330.0,0.46379455]
[1754181422049,0.6561377,112340.0,112330.0,0.55863455]
[1754181422254,0.6561377,112340.0,112330.0,0.2970135]
[1754181422555,0.6561377,112340.0,112330.0,0.02416]
[1754181422750,0.2953533,112330.0,112320.0,0.1780992]
[1754181422951,0.2953692,112320.0,112310.0,0.2927823]
[1754181423146,0.6561692,112320.0,112310.0,0.3272023]
[1754181423457,0.6561692,112320.0,112310.0,0.3415623]
[1754181424152,0.6531692,112320.0,112310.0,0.3347491]
[1754181424343,0.6531692,112320.0,112310.0,0.3657291]
[1754181424955,0.6531692,112320.0,112310.0,0.3677291]
[1754181426244,0.6531692,112320.0,112310.0,0.3553691]
[1754181427248,0.6531692,112320.0,112310.0,0.2507991]
[1754181428263,0.6531692,112320.0,112310.0,0.2748891]
[1754181429053,0.6531692,112320.0,112310.0,0.2062052]
[1754181429261,0.6531692,112320.0,112310.0,0.004]
[1754181429452,0.9600458,112320.0,112310.0,0.004]
[1754181430460,0.2944169,112290.0,112280.0,0.47251072]
[1754181431755,0.2944169,112290.0,112280.0,0.47351072]
[1754181432657,0.2944169,112290.0,112280.0,0.39351063]
[1754181433262,0.2944169,112290.0,112280.0,0.39551063]
[1754181434559,0.6552169,112290.0,112280.0,0.35097153]
[1754181434855,0.6552169,112290.0,112280.0,0.23356253]
[1754181435070,0.6552169,112290.0,112280.0,0.00935113]
[1754181435353,0.9620935,112290.0,112280.0,0.00935113]
[1754181435547,0.8333369,112290.0,112280.0,0.00935113]
[1754181436458,0.1782104,112250.0,112240.0,0.37563739]
[1754181436760,0.6562804,112250.0,112240.0,0.42169739]
[1754181436961,0.47807,112250.0,112240.0,0.42169739]
[1754181437261,0.11727,112250.0,112240.0,0.42169739]
[1754181437462,0.7008018,112270.0,112260.0,0.2971236]
[1754181437753,0.7008018,112270.0,112260.0,0.11893]
[1754181437957,0.2258736,112260.0,112250.0,0.3277192]
[1754181438167,0.6562636,112260.0,112250.0,0.3862292]
[1754181438459,0.36998,112260.0,112250.0,0.3862292]
[1754181438759,0.2463512,112280.0,112270.0,0.2971081]
[1754181438760,0.6562372,112280.0,112270.0,0.2971081]
[1754181439454,0.3608,112280.0,112270.0,0.6039847]
[1754181439849,0.3608,112280.0,112270.0,0.2971081]
[1754181440160,0.6562322,112280.0,112270.0,0.2971081]
[1754181440357,0.2954481,112270.0,112260.0,0.3416593]
[1754181440560,0.209613,112260.0,112250.0,0.3133622]
[1754181440753,0.656263,112260.0,112250.0,0.3862322]
[1754181441260,0.656263,112260.0,112250.0,0.3416807]
[1754181442347,0.656263,112260.0,112250.0,0.2971292]
[1754181442552,0.656263,112260.0,112250.0,0.2827692]
[1754181442753,0.295463,112260.0,112250.0,0.2971292]
[1754181443261,0.657263,112260.0,112250.0,0.2971292]
[1754181443663,0.296463,112260.0,112250.0,0.2971292]
[1754181444363,0.657263,112260.0,112250.0,0.1781992]
[1754181444560,0.657263,112260.0,112250.0,0.2022892]
[1754181444761,0.658263,112260.0,112250.0,0.2367092]
[1754181444957,0.658263,112260.0,112250.0,0.2966092]
[1754181445365,0.297463,112260.0,112250.0,0.2966092]
[1754181445550,0.658263,112260.0,112250.0,0.2966092]
[1754181445754,0.72910223,112260.0,112250.0,0.2966092]
[1754181446556,0.2257894,112250.0,112240.0,0.7376547]
[1754181446756,0.2991894,112250.0,112240.0,0.7376547]
[1754181447154,0.6599894,112250.0,112240.0,0.2971154]
[1754181447354,0.2991894,112250.0,112240.0,0.603992]
[1754181447754,0.6599894,112250.0,112240.0,0.603992]
[1754181447958,0.6599894,112250.0,112240.0,0.2981154]
[1754181448958,0.6609894,112250.0,112240.0,0.2981154]
[1754181449264,0.6609894,112250.0,112240.0,0.2981252]
[1754181449560,0.2258053,112240.0,112230.0,0.3601034]
[1754181449765,0.6600053,112240.0,112230.0,0.4308034]
[1754181450257,0.6600053,112240.0,112230.0,0.3862447]
[1754181450761,0.6600053,112240.0,112230.0,0.3882447]
[1754181450958,0.6600053,112240.0,112230.0,0.002]
[1754181451162,0.6600053,112240.0,112230.0,0.001]
[1754181451369,0.9668819,112240.0,112230.0,0.001]
[1754181451858,0.210007,112220.0,112210.0,0.3862954]
[1754181452062,0.660037,112220.0,112210.0,0.3862954]
[1754181452262,0.299237,112220.0,112210.0,0.3862954]
[1754181452864,0.660037,112220.0,112210.0,0.3862954]
[1754181453262,0.2992364,112220.0,112210.0,0.3724554]
[1754181453465,0.6600364,112220.0,112210.0,0.2971605]
[1754181453764,0.1782723,112210.0,112200.0,0.31841075]
[1754181453959,0.6600523,112210.0,112200.0,0.18471405]
[1754181454158,0.6600523,112210.0,112200.0,0.24157405]
[1754181454356,0.6600523,112210.0,112200.0,0.06328585]
[1754181454868,0.6600523,112210.0,112200.0,0.00642585]
[1754181455162,0.6600523,112210.0,112200.0,0.18571405]
[1754181455357,0.6600523,112210.0,112200.0,0.06418585]
[1754181455559,0.6600523,112210.0,112200.0,0.00742585]
[1754181456270,0.83830031,112210.0,112200.0,0.00842585]
[1754181456454,1.14517691,112210.0,112200.0,0.00842585]
[1754181456761,0.83830031,112210.0,112200.0,0.00842585]
[1754181456961,1.14517691,112210.0,112200.0,0.00842585]
[1754181457755,0.83830031,112210.0,112200.0,0.00842585]
[1754181458461,1.14517691,112210.0,112200.0,0.00842585]
[1754181458862,0.83830031,112210.0,112200.0,0.00842585]
[1754181459866,1.14517691,112210.0,112200.0,0.00842585]
[1754181460756,0.6600523,112210.0,112200.0,0.18671405]
[1754181460963,0.6600523,112210.0,112200.0,0.00842585]
[1754181461364,0.9669289,112210.0,112200.0,0.00842585]
[1754181461968,0.6600523,112210.0,112200.0,0.00842585]
[1754181462167,0.9669289,112210.0,112200.0,0.00842585]
[1754181462771,0.9669289,112210.0,112200.0,0.18671405]
[1754181463070,0.9669289,112210.0,112200.0,0.00842585]
[1754181463369,0.6600523,112210.0,112200.0,0.00842585]
[1754181463777,0.9669289,112210.0,112200.0,0.00842585]
[1754181464456,1.14517691,112210.0,112200.0,0.00842585]
[1754181464661,0.1783358,112170.0,112160.0,0.6606424]
[1754181464862,0.2993158,112170.0,112160.0,0.7472124]
[1754181465565,0.12098,112170.0,112160.0,0.3864124]
[1754181465770,0.2993158,112170.0,112160.0,0.3904124]
[1754181466172,0.2993158,112170.0,112160.0,0.3458256]
[1754181466470,0.9669924,112170.0,112160.0,0.004]
[1754181466671,0.6601158,112170.0,112160.0,0.004]
[1754181467061,0.9669924,112170.0,112160.0,0.009]
[1754181467472,1.03721841,112170.0,112160.0,0.009]
[1754181468468,1.04712068,112170.0,112160.0,0.004]
[1754181468671,0.2259636,112140.0,112130.0,0.3864828]
[1754181468871,0.12098,112140.0,112130.0,0.3864828]
[1754181469176,0.2993636,112140.0,112130.0,0.3864828]
[1754181469374,0.6601636,112140.0,112130.0,0.3864828]
[1754181469775,0.2993636,112140.0,112130.0,0.3864828]
[1754181470166,0.6601636,112140.0,112130.0,0.003]
[1754181470366,0.1784631,112090.0,112080.0,0.3608]
[1754181470567,0.178479,112080.0,112060.0,0.25850499]
[1754181470766,0.7216,112070.0,112060.0,0.19245539]
[1754181470973,0.09402994,112080.0,112070.0,0.201635]
[1754181471275,0.5392288,112120.0,112110.0,0.0707]
[1754181471475,0.6126288,112120.0,112110.0,0.0707]
[1754181471674,0.6106288,112120.0,112110.0,0.05686]
[1754181471875,0.9714288,112120.0,112110.0,0.05686]
[1754181472079,0.2518465,112100.0,112090.0,0.2491556]
[1754181472379,0.2518465,112100.0,112090.0,0.05686]
[1754181472590,0.2677397,112080.0,112070.0,0.0707]
[1754181472773,0.3411397,112080.0,112070.0,0.26314457]
[1754181472974,0.3411397,112080.0,112070.0,0.01395027]
[1754181473281,0.7019397,112080.0,112070.0,0.01395027]
[1754181473471,0.7019397,112080.0,112070.0,0.19244457]
[1754181473674,0.3411397,112080.0,112070.0,0.26314457]
[1754181473869,0.3411397,112080.0,112070.0,0.57002117]
[1754181474066,0.3431397,112080.0,112070.0,0.55618117]
[1754181474377,0.7039397,112080.0,112070.0,0.4853709]
[1754181474572,0.227484,112070.0,112060.0,0.3384486]
[1754181474777,0.251894,112070.0,112060.0,0.6453252]
[1754181475281,0.1785258,112050.0,112040.0,0.5839694]
[1754181475472,0.2485658,112050.0,112040.0,0.2951194]
[1754181475671,0.2485658,112050.0,112040.0,0.601996]
[1754181475875,0.2253918,112040.0,112030.0,0.00657529]
[1754181476180,0.1785418,112040.0,112030.0,0.36080009]
[1754181476369,0.2486077,112030.0,112020.0,0.530081]
[1754181476568,0.1785577,112030.0,112020.0,0.5840035]
[1754181476770,0.1785738,112020.0,112010.0,0.2505397]
[1754181476970,0.37576,112030.0,112020.0,0.1785738]
[1754181477168,0.07004,112050.0,112040.0,0.2157919]
[1754181477371,0.07004,112050.0,112040.0,0.2504919]
[1754181477372,0.609366,112050.0,112040.0,0.2504919]
[1754181477572,0.248566,112050.0,112040.0,0.2504919]
[1754181477777,0.609366,112050.0,112040.0,0.2504919]
[1754181478281,0.2485803,112040.0,112030.0,0.002]
[1754181478485,0.07004,112040.0,112030.0,0.5573829]
[1754181478782,0.4500673,112050.0,112030.0,0.5573829]
[1754181478783,0.07004,112050.0,112040.0,0.2504903]
[1754181478971,0.07004,112060.0,112050.0,0.2951044]
[1754181479275,0.2485333,112070.0,112060.0,0.07195]
[1754181479476,0.6093333,112070.0,112060.0,0.05837]
[1754181479672,0.1785251,112050.0,112040.0,0.1795378]
[1754181479878,0.2485651,112050.0,112040.0,0.2278211]
[1754181480178,0.2545651,112050.0,112040.0,0.04928]
[1754181480373,0.2475813,112040.0,112030.0,0.2505072]
[1754181480580,0.6083813,112040.0,112030.0,0.2505072]
[1754181480778,0.5602938,112050.0,112040.0,0.1785413]
[1754181480980,0.006,112050.0,112040.0,0.9181679]
[1754181481478,0.006,112050.0,112040.0,0.6112913]
[1754181481685,0.1845253,112050.0,112040.0,0.5573679]
[1754181481876,0.1785253,112050.0,112040.0,0.9181679]
[1754181482280,0.1785253,112050.0,112040.0,0.6112913]
[1754181482590,0.2154153,112050.0,112040.0,0.05937]
[1754181482886,0.6143653,112050.0,112040.0,0.001]
[1754181483074,0.9212419,112050.0,112040.0,0.001]
[1754181483385,0.6143653,112050.0,112040.0,0.1795413]
[1754181483882,0.011,112050.0,112040.0,0.9191679]
[1754181484083,0.1895255,112050.0,112040.0,0.9191679]
[1754181484273,0.011,112050.0,112040.0,0.9191679]
[1754181484780,0.011,112050.0,112040.0,1.2355679]
[1754181485390,0.698573,112080.0,112070.0,0.2021636]
[1754181485583,0.698573,112080.0,112070.0,0.5573202]
[1754181485889,0.1784752,112090.0,112080.0,0.2504277]
[1754181486080,0.2230696,112100.0,112090.0,0.2504118]
[1754181486281,0.1784356,112110.0,112100.0,0.2503958]
[1754181486488,0.1784356,112110.0,112100.0,0.9180724]
[1754181486789,0.1784227,112120.0,112110.0,0.2503799]
[1754181486977,0.2102881,112130.0,112120.0,0.250364]
[1754181487178,0.1783787,112150.0,112140.0,0.2266622]
[1754181487485,0.02019667,112150.0,112140.0,0.9180088]
[1754181487689,0.02019667,112150.0,112140.0,1.5947688]
[1754181488188,0.2229103,112180.0,112170.0,0.2502845]
[1754181488485,0.2228899,112190.0,112180.0,0.2502686]
[1754181488680,0.1782973,112200.0,112190.0,0.2502527]
[1754181488884,0.06389291,112210.0,112200.0,0.2502368]
[1754181489090,0.24215881,112220.0,112210.0,0.2502209]
[1754181489281,0.24215881,112220.0,112210.0,0.5570975]
[1754181489477,0.0445577,112240.0,112230.0,0.07195]
[1754181489785,0.07986614,112250.0,112240.0,0.2501733]
[1754181490086,0.00486614,112260.0,112250.0,0.2501574]
[1754181490292,0.3345234,112280.0,112270.0,0.1781756]
[1754181490475,0.3345234,112280.0,112270.0,0.3788266]
[1754181490674,0.3345234,112280.0,112270.0,0.9178022]
[1754181490675,0.2899829,112280.0,112270.0,0.9178022]
[1754181490875,0.1118126,112280.0,112270.0,1.42674887]
[1754181491092,0.1781439,112290.0,112280.0,0.0890754]
[1754181491286,0.2231399,112300.0,112290.0,0.1781439]
[1754181491480,0.1781226,112310.0,112300.0,0.178128]
[1754181491686,0.02319,112320.0,112310.0,0.00491]
[1754181491881,0.02319,112330.0,112320.0,0.1819063]
[1754181492082,0.02319,112330.0,112320.0,0.5427063]
[1754181492280,0.40765,112340.0,112330.0,0.00381]
[1754181492281,0.5620546,112340.0,112330.0,0.00381]
[1754181492481,0.02319,112330.0,112320.0,0.2264248]
[1754181492781,0.02319,112330.0,112310.0,0.4053259]
[1754181492782,0.45225088,112330.0,112310.0,0.4053259]
[1754181492983,0.07004,112310.0,112300.0,0.1781199]
[1754181493180,0.03815,112310.0,112300.0,0.45881717]
[1754181493380,0.02319,112310.0,112300.0,0.81961717]
[1754181493581,0.59508417,112330.0,112320.0,0.1780963]
[1754181493789,0.04685,112320.0,112310.0,0.2226292]
[1754181493988,0.1781122,112310.0,112300.0,0.36461]
[1754181494292,0.15715537,112310.0,112300.0,0.5427381]
[1754181494478,0.15715537,112310.0,112300.0,0.81962537]
[1754181494795,0.15715537,112310.0,112300.0,0.82072537]
[1754181495287,0.16015537,112310.0,112300.0,0.7219261]
[1754181495489,0.16015537,112310.0,112300.0,0.99881337]
[1754181495686,0.01944617,112310.0,112300.0,0.99881337]
[1754181495880,0.22732038,112330.0,112320.0,0.1780963]
[1754181496288,0.07004,112330.0,112320.0,0.1780963]
[1754181496590,0.07004,112330.0,112320.0,0.81578357]
[1754181496781,0.07004,112330.0,112320.0,0.5388963]
[1754181496986,0.07004,112330.0,112310.0,0.4943774]
[1754181496987,0.07004,112320.0,112310.0,0.5834275]
[1754181497383,0.05508,112320.0,112310.0,0.5834275]
[1754181498094,0.2481367,112320.0,112310.0,0.3608]
[1754181498281,0.02319,112290.0,112280.0,0.5834887]
[1754181498479,0.05508,112290.0,112280.0,0.5834887]
[1754181498683,0.40765,112310.0,112300.0,0.1781284]
[1754181498987,0.5857625,112310.0,112300.0,0.1781284]
[1754181499196,0.1781443,112290.0,112270.0,0.3608]
[1754181499398,0.225026,112270.0,112260.0,0.02367]
[1754181499586,0.591696,112270.0,112260.0,0.02367]
[1754181499783,0.2100977,112250.0,112240.0,0.02367]
[1754181499980,0.5708977,112250.0,112240.0,0.02367]
[1754181500186,0.03189,112250.0,112240.0,0.2018936]
[1754181500393,0.03189,112250.0,112240.0,0.2365936]
[1754181500684,0.03189,112270.0,112260.0,0.2365619]
[1754181500889,0.570866,112270.0,112260.0,0.02367]
[1754181501082,0.1781944,112260.0,112250.0,0.2227504]
[1754181501385,0.39269,112280.0,112270.0,0.201846]
[1754181501586,0.04685,112290.0,112280.0,0.2463552]
[1754181501790,0.2672085,112300.0,112290.0,0.2810339]
[1754181501791,0.04685,112300.0,112290.0,0.2810339]
[1754181502091,0.2249784,112300.0,112290.0,0.2810339]
[1754181502292,0.04685,112300.0,112290.0,0.2810339]
[1754181502691,0.2100184,112300.0,112290.0,0.2946139]
[1754181502892,0.2249784,112300.0,112290.0,0.2463339]
[1754181503089,0.5857784,112300.0,112290.0,0.02367]
[1754181503287,0.5857784,112300.0,112290.0,0.2018143]
[1754181503483,0.5708128,112310.0,112300.0,0.1781284]
[1754181503691,0.40765,112310.0,112300.0,0.2364984]
[1754181503885,0.04685,112310.0,112300.0,0.2364984]
[1754181504097,0.03189,112310.0,112300.0,0.2500784]
[1754181504293,0.2100026,112310.0,112300.0,0.2500784]
[1754181504491,0.5389087,112320.0,112310.0,0.2364839]
[1754181504795,0.3608,112320.0,112310.0,0.2500639]
[1754181505098,0.2129669,112320.0,112310.0,0.3608]
[1754181505296,0.2346186,112300.0,112290.0,0.02545]
[1754181505596,0.04962,112300.0,112290.0,0.5985345]
[1754181505786,0.5389132,112310.0,112300.0,0.251409]
[1754181506190,0.5885332,112310.0,112300.0,0.236719]
[1754181506494,0.04962,112310.0,112300.0,0.87440627]
[1754181506800,0.6330461,112320.0,112310.0,0.2025632]
[1754181507092,0.39567,112320.0,112310.0,0.2367032]
[1754181507296,0.61075022,112330.0,112320.0,0.1780979]
[1754181507496,0.61075022,112330.0,112320.0,0.2366879]
[1754181507497,0.3608,112330.0,112320.0,0.2366879]
[1754181507693,0.5388821,112330.0,112320.0,0.2366879]
[1754181507896,0.5885021,112330.0,112320.0,0.02445]
[1754181508089,0.2367179,112320.0,112310.0,0.2035578]
[1754181508397,0.6043879,112320.0,112310.0,0.1791138]
[1754181508600,0.6043879,112320.0,112310.0,0.001]
[1754181509394,0.2277663,112290.0,112280.0,0.04822859]
[1754181509599,0.75652297,112290.0,112280.0,0.03208784]
[1754181509903,0.93464297,112290.0,112280.0,0.03208784]
[1754181510689,0.590354,112290.0,112280.0,0.11045151]
[1754181510895,0.774474,112290.0,112280.0,0.11045151]
[1754181511093,0.87434,112290.0,112280.0,0.04019151]
[1754181511396,0.1781777,112270.0,112260.0,0.3145429]
[1754181511599,0.5389777,112270.0,112260.0,0.3145429]
[1754181511799,0.1781777,112270.0,112260.0,0.3145429]
[1754181512195,0.1781777,112270.0,112260.0,0.3486829]
[1754181512502,0.5389777,112270.0,112260.0,0.02445]
[1754181512902,0.1782095,112250.0,112240.0,2.0010715]
[1754181513606,0.5835148,112280.0,112270.0,0.2514577]
[1754181513802,0.1781573,112290.0,112280.0,0.1781619]
[1754181513993,0.5389406,112300.0,112290.0,0.178146]
[1754181514192,0.3608,112300.0,112290.0,0.236736]
[1754181514397,0.2226558,112310.0,112300.0,0.02445]
[1754181514594,0.5834558,112310.0,112300.0,0.02445]
[1754181514994,0.5834558,112310.0,112300.0,0.2025802]
[1754181515396,0.6279602,112320.0,112310.0,0.1781143]
[1754181515600,0.6279602,112320.0,112310.0,0.2513943]
[1754181515803,0.5834326,112320.0,112310.0,0.2513943]
[1754181516002,0.3608,112330.0,112320.0,0.2513784]
[1754181516304,0.583353,112360.0,112350.0,0.2366409]
[1754181516604,0.3608,112360.0,112350.0,0.2513309]
[1754181516806,0.3608,112360.0,112350.0,0.31414636]
[1754181517007,0.5833418,112370.0,112360.0,0.1780359]
[1754181517213,0.5833418,112370.0,112360.0,0.02445]
[1754181517398,0.5833418,112370.0,112360.0,0.08726546]
[1754181517605,0.65544584,112370.0,112360.0,0.08726546]
[1754181517799,0.65544584,112370.0,112360.0,0.04711384]
[1754181518203,0.1780359,112360.0,112350.0,0.06281546]
[1754181518401,0.5388359,112360.0,112350.0,0.06281546]
[1754181518601,0.5388359,112360.0,112350.0,0.08726546]
[1754181518806,0.5388359,112360.0,112350.0,0.26531716]
[1754181518807,0.1780359,112360.0,112350.0,0.26531716]
[1754181519307,0.5388359,112360.0,112350.0,0.29945716]
[1754181519505,0.3608,112370.0,112360.0,0.2366259]
[1754181519708,0.36736872,112380.0,112370.0,0.2513]
[1754181520006,0.54537292,112380.0,112370.0,0.2513]
[1754181520195,0.54537292,112380.0,112370.0,0.29844277]
[1754181520398,0.36736872,112380.0,112370.0,0.2513]
[1754181520603,0.36736872,112380.0,112360.0,0.46398153]
[1754181520810,0.81570727,112370.0,112360.0,0.05602082]
[1754181521108,0.81570727,112370.0,112360.0,0.05502082]
[1754181521406,0.53782,112370.0,112360.0,0.04803035]
[1754181521905,0.53782,112370.0,112360.0,0.02358035]
[1754181522111,0.54482,112370.0,112360.0,0.02458035]
[1754181522614,0.18402,112370.0,112360.0,0.27589625]
[1754181522806,0.18402,112370.0,112360.0,0.04903035]
[1754181522807,0.54482,112370.0,112360.0,0.04903035]
[1754181523010,0.82170727,112370.0,112360.0,0.001]
[1754181523310,0.82770727,112370.0,112360.0,0.001]
[1754181524010,0.55082,112370.0,112360.0,0.001]
[1754181524509,0.55082,112370.0,112360.0,0.2034859]
[1754181524711,0.19002,112370.0,112360.0,0.2523159]
[1754181524915,0.013,112370.0,112360.0,0.2523159]
[1754181525210,0.013,112370.0,112360.0,0.6131159]
[1754181525802,0.013,112370.0,112360.0,0.97710339]
[1754181526210,0.013,112370.0,112360.0,1.0242641]
[1754181526711,0.013,112370.0,112360.0,0.6451953]
[1754181526712,0.1910199,112370.0,112360.0,0.6451953]
[1754181527109,0.1910199,112370.0,112360.0,0.70801076]